bitfinex/quotes_SOLUSD_20241024
["timestamp","ask_amount","ask_price","bid_price","bid_amount"]
[1729797505527,0.68096821,177.14,177.07,19.8511032]
[1729797505730,0.68096821,177.14,177.12,19.8511032]
[1729797505950,19.8511032,177.13,177.09,0.25098]
[1729797506157,20.53207141,177.14,177.09,43.8789672]
[1729797506454,0.68096821,177.14,177.1,19.8511032]
[1729797507955,0.68096821,177.14,177.11,19.8511032]
[1729797508956,0.68096821,177.14,177.1,19.8511032]
[1729797510230,0.68096821,177.14,177.11,19.8511032]
[1729797510456,0.68096821,177.14,177.13,19.8511032]
[1729797510853,0.68096821,177.14,177.12,20.1020832]
[1729797512159,0.68096821,177.14,177.12,0.25098]
[1729797516062,0.5966702,177.17,177.13,19.8511032]
[1729797520161,20.4477734,177.17,177.12,20.1020832]
[1729797520338,19.8511032,177.16,177.12,10.1765316]
[1729797520541,19.8511032,177.16,177.12,20.1020832]
[1729797520967,19.8511032,177.16,177.12,24.027864]
[1729797521946,19.8511032,177.16,177.12,43.8789672]
[1729797522865,26.0920734,177.17,177.12,43.8789672]
[1729797523372,6.2409702,177.17,177.12,43.8789672]
[1729797523547,26.0920734,177.17,177.12,43.8789672]
[1729797524263,0.5966702,177.17,177.14,43.8789672]
[1729797524466,0.5966702,177.17,177.16,19.8511032]
[1729797524656,0.5966702,177.17,177.16,20.1020832]
[1729797525366,0.5966702,177.17,177.11,14.7293]
[1729797525554,19.8511032,177.14,177.07,14.7293]
[1729797525864,19.8511032,177.14,177.09,19.8511032]
[1729797526861,19.8511032,177.14,177.08,19.9765932]
[1729797527064,19.8511032,177.14,177.1,0.12549]
[1729797527366,19.8511032,177.14,177.1,0.25098]
[1729797527570,19.8511032,177.11,177.02,14.7293]
[1729797527765,19.8511032,177.1,177.06,19.8511032]
[1729797527966,19.8511032,177.1,177.05,19.8511032]
[1729797528268,19.8511032,177.11,177.06,19.8511032]
[1729797528459,19.8511032,177.12,177.07,19.8511032]
[1729797529060,19.8511032,177.12,177.08,24.027864]
[1729797530770,19.8511032,177.13,177.08,43.8789672]
[1729797532476,19.8511032,177.12,177.08,24.027864]
[1729797533871,19.8511032,177.13,177.08,43.8789672]
[1729797534091,5.6446,177.16,177.08,43.8789672]
[1729797534249,19.8511032,177.13,177.08,43.8789672]
[1729797534896,19.8511032,177.12,177.08,24.027864]
[1729797535172,19.8511032,177.13,177.08,24.027864]
[1729797538479,19.8511032,177.13,177.08,43.8789672]
[1729797542581,19.8511032,177.13,177.08,24.027864]
[1729797542775,19.8511032,177.09,177.03,19.8511032]
[1729797542980,19.8511032,177.08,177.03,19.8511032]
[1729797543466,19.8511032,177.09,177.04,19.8511032]
[1729797543782,19.8511032,177.1,177.05,19.8511032]
[1729797544572,19.8511032,177.1,177.05,0.25098]
[1729797546080,19.8511032,177.09,177.05,0.25098]
[1729797547488,19.8511032,177.08,177.05,0.25098]
[1729797547883,19.8511032,177.08,177.04,24.027864]
[1729797549692,15.2899,177.12,177.05,19.9765932]
[1729797549875,15.2899,177.12,177.08,0.25098]
[1729797550071,19.8511032,177.11,177.08,0.25098]
[1729797550489,19.8511032,177.11,177.07,24.027864]
[1729797551160,19.8511032,177.1,177.07,24.027864]
[1729797551366,19.8511032,177.1,177.07,0.12549]
[1729797551983,19.8511032,177.08,177.06,0.12549]
[1729797552884,19.8511032,177.08,177.04,23.902374]
[1729797553190,19.8511032,177.08,177.05,0.12549]
[1729797554490,5.6465,177.1,177.05,0.12549]
[1729797554790,19.8511032,177.1,177.05,19.9765932]
[1729797556789,19.8511032,177.1,177.05,0.12549]
[1729797557090,19.8511032,177.09,177.05,0.12549]
[1729797558909,15.2899,177.12,177.07,19.8511032]
[1729797559076,35.1410032,177.12,177.07,19.8511032]
[1729797559377,35.1410032,177.12,177.08,19.8511032]
[1729797559576,15.2899,177.12,177.09,19.8511032]
[1729797559980,19.8511032,177.14,177.09,19.8511032]
[1729797563801,16.052,177.16,177.11,19.8511032]
[1729797564002,16.052,177.16,177.14,19.8511032]
[1729797564200,0.5966702,177.17,177.14,19.8511032]
[1729797565490,0.5966702,177.17,177.13,19.8511032]
[1729797565688,0.5966702,177.17,177.16,20.2275732]
[1729797565895,0.5966702,177.17,177.16,44.0044572]
[1729797566303,0.5966702,177.17,177.16,46.28170105]
[1729797566692,0.5966702,177.17,177.16,44.0044572]
[1729797566883,0.5966702,177.17,177.16,44.1044572]
[1729797567295,11.51966701,177.3,177.17,24.253354]
[1729797567495,19.8511032,177.29,177.24,0.25098]
[1729797567802,19.8511032,177.26,177.2,19.8511032]
[1729797567991,19.8511032,177.26,177.21,24.027864]
[1729797568706,19.8511032,177.26,177.21,43.8789672]
[1729797568916,19.8511032,177.26,177.21,24.027864]
[1729797569206,19.8511032,177.26,177.21,43.8789672]
[1729797569401,25.4928032,177.25,177.16,6.6042]
[1729797569606,25.4928032,177.25,177.19,19.8511032]
[1729797569907,25.4928032,177.25,177.2,0.25098]
[1729797571095,25.4928032,177.25,177.19,19.8511032]
[1729797571096,9.9255516,177.23,177.17,23.776884]
[1729797571302,19.8511032,177.21,177.16,19.8511032]
[1729797571607,19.8511032,177.19,177.1,14.1328]
[1729797571901,19.8511032,177.18,177.13,19.8511032]
[1729797572287,0.1,177.24,177.08,6.1926]
[1729797572288,19.8511032,177.16,177.08,6.1926]
[1729797572507,19.8511032,177.16,177.11,19.8511032]
[1729797572895,25.4960032,177.16,177.1,19.8511032]
[1729797573198,19.8511032,177.15,177.1,19.8511032]
[1729797574193,19.8511032,177.15,177.11,0.25098]
[1729797575388,25.4960032,177.16,177.11,20.1020832]
[1729797575707,19.8511032,177.15,177.11,0.25098]
[1729797576515,25.4960032,177.15,177.11,0.25098]
[1729797576806,5.6449,177.15,177.11,20.1020832]
[1729797577413,16.6572,177.17,177.11,20.1020832]
[1729797577707,25.4957032,177.16,177.11,20.1020832]
[1729797579512,19.8511032,177.15,177.11,20.1020832]
[1729797580012,5.6446,177.16,177.11,0.25098]
[1729797580013,19.8511032,177.14,177.11,0.25098]
[1729797582816,19.8511032,177.16,177.12,19.8511032]
[1729797582997,19.8511032,177.16,177.11,43.8789672]
[1729797584507,16.6572,177.17,177.12,19.8511032]
[1729797584708,36.5083032,177.17,177.13,0.25098]
[1729797585605,19.8511032,177.17,177.13,0.25098]
[1729797585812,25.73816207,177.19,177.14,19.8511032]
[1729797586014,25.73816207,177.19,177.15,0.25098]
[1729797586225,19.8511032,177.18,177.15,0.25098]
[1729797586616,19.8511032,177.18,177.14,0.25098]
[1729797587723,31.38176207,177.19,177.16,0.25098]
[1729797589218,19.8511032,177.18,177.16,0.25098]
[1729797590120,19.8511032,177.17,177.13,0.12549]
[1729797590316,19.8511032,177.16,177.14,0.25098]
[1729797590511,5.644,177.18,177.14,0.25098]
[1729797590717,19.8511032,177.17,177.14,0.25098]
[1729797591500,25.4954032,177.17,177.14,0.25098]
[1729797594022,19.8511032,177.17,177.14,0.25098]
[1729797594224,5.88705887,177.19,177.17,24.027864]
[1729797594416,19.8511032,177.22,177.17,43.8789672]
[1729797594621,25.4941032,177.21,177.17,43.8789672]
[1729797594929,5.643,177.21,177.17,43.8789672]
[1729797595321,5.643,177.21,177.17,24.027864]
[1729797596523,19.8511032,177.22,177.17,24.027864]
[1729797596728,19.8511032,177.21,177.17,24.027864]
[1729797596920,19.8511032,177.21,177.17,0.25098]
[1729797597223,19.8511032,177.21,177.09,0.2]
[1729797597224,19.8511032,177.18,177.08,20.5129]
[1729797597403,19.8511032,177.15,177.1,19.8511032]
[1729797597606,19.8511032,177.14,177.09,19.8511032]
[1729797598226,0.1,177.21,177.04,20.5129]
[1729797598433,19.8511032,177.14,177.04,20.6129]
[1729797598731,19.8511032,177.14,177.09,19.8511032]
[1729797599906,19.8511032,177.14,177.1,24.027864]
[1729797600406,5.6436,177.19,177.12,43.7534772]
[1729797600622,5.6436,177.19,177.15,0.12549]
[1729797600623,25.4947032,177.19,177.15,0.12549]
[1729797600929,25.4947032,177.19,177.15,0.25098]
[1729797601324,25.4947032,177.19,177.15,24.027864]
[1729797602632,19.8511032,177.18,177.15,24.027864]
[1729797604217,5.6436,177.19,177.15,24.027864]
[1729797604419,30.98796288,177.18,177.15,24.027864]
[1729797608051,36.63156288,177.19,177.15,55.01582688]
[1729797608236,5.6436,177.19,177.15,55.01582688]
[1729797608542,36.63156288,177.19,177.15,55.01582688]
[1729797609046,5.6423,177.23,177.17,55.14131688]
[1729797609227,30.98796288,177.22,177.19,0.12549]
[1729797610040,30.98796288,177.2,177.14,30.98796288]
[1729797610236,36.63156288,177.19,177.15,24.027864]
[1729797610457,5.6436,177.19,177.15,24.027864]
[1729797610745,36.63156288,177.19,177.15,24.027864]
[1729797611728,30.98796288,177.16,177.07,22.90969451]
[1729797611934,30.98796288,177.14,177.1,30.98796288]
[1729797612245,30.98796288,177.14,177.11,0.12549]
[1729797612421,30.98796288,177.15,177.11,0.12549]
[1729797612622,11.52912625,177.19,177.14,30.98796288]
[1729797612819,42.51708913,177.19,177.14,30.98796288]
[1729797613045,42.51708913,177.19,177.15,0.25098]
[1729797613253,30.98796288,177.18,177.15,0.25098]
[1729797613439,30.98796288,177.18,177.14,24.027864]
[1729797613820,36.63206288,177.18,177.14,24.027864]
[1729797614226,30.98796288,177.15,177.07,20.5867]
[1729797614534,30.98796288,177.13,177.08,30.98796288]
[1729797614734,30.98796288,177.13,177.09,0.12549]
[1729797615143,30.98796288,177.13,177.08,30.98796288]
[1729797615325,30.98796288,177.14,177.09,30.98796288]
[1729797615525,30.98796288,177.14,177.1,24.027864]
[1729797616552,36.63306288,177.15,177.1,55.01582688]
[1729797617048,5.88552625,177.19,177.13,30.98796288]
[1729797617240,30.98796288,177.18,177.13,30.98796288]
[1729797617544,30.98796288,177.17,177.12,31.23894288]
[1729797617731,30.98796288,177.18,177.14,0.25098]
[1729797617937,5.88552625,177.19,177.14,0.25098]
[1729797618127,36.87348913,177.19,177.16,0.25098]
[1729797619141,42.51708913,177.19,177.16,0.25098]
[1729797621051,36.87348913,177.19,177.16,0.25098]
[1729797621248,30.98796288,177.18,177.16,0.25098]
[1729797621852,42.51718913,177.19,177.16,0.25098]
[1729797622237,30.98796288,177.17,177.1,30.98796288]
[1729797622443,30.98796288,177.13,177.08,30.98796288]
[1729797622646,30.98796288,177.1,177.05,30.98796288]
[1729797623163,30.98796288,177.09,177.04,30.98796288]
[1729797623453,30.98796288,177.08,176.98,6.2452]
[1729797623750,25.6446,177.16,177.07,30.98796288]
[1729797623935,25.6446,177.16,177.08,30.98796288]
[1729797624138,30.98796288,177.13,177.07,30.98796288]
[1729797624455,6.0634,177.15,177.03,30.98796288]
[1729797624655,30.98796288,177.09,177.03,30.98796288]
[1729797624829,30.98796288,177.09,177.04,0.12549]
[1729797625033,15.7793,177.14,176.94,100.98796288]
[1729797625034,30.98796288,177.08,177.02,30.98796288]
[1729797626151,30.98796288,177.07,177.02,30.98796288]
[1729797626360,30.98796288,177.04,176.98,12.02525287]
[1729797626651,30.98796288,177.04,176.99,30.98796288]
[1729797627851,30.98796288,177.12,176.94,6.2787]
[1729797627852,30.98796288,177.03,176.94,6.2787]
[1729797628057,30.98796288,177.03,176.98,30.98796288]
[1729797628756,30.98796288,177.02,176.92,5.87522701]
[1729797628943,30.98796288,177.01,176.96,30.98796288]
[1729797629561,30.98796288,177.01,176.97,0.12549]
[1729797629942,30.98796288,177.02,176.97,31.11345288]
[1729797630145,30.98796288,177.02,176.98,24.027864]
[1729797630339,30.98796288,177.03,176.98,55.01582688]
[1729797630555,16.597,177.04,176.98,55.01582688]
[1729797630751,30.98796288,177.04,177.0,0.25098]
[1729797631062,30.98796288,177.01,176.95,30.98796288]
[1729797631260,30.98796288,176.99,176.89,26.38884917]
[1729797631451,30.98796288,176.99,176.94,30.98796288]
[1729797631862,30.98796288,176.99,176.95,0.12549]
[1729797632360,30.98796288,176.98,176.93,30.98796288]
[1729797632556,30.98796288,176.97,176.92,30.98796288]
[1729797632747,30.98796288,176.97,176.93,0.12549]
[1729797633063,30.98796288,176.98,176.92,30.98796288]
[1729797633264,30.98796288,176.97,176.92,30.98796288]
[1729797633453,30.98796288,176.97,176.91,30.98796288]
[1729797634465,30.98796288,176.96,176.91,30.98796288]
[1729797634850,30.98796288,176.95,176.92,24.027864]
[1729797635059,30.98796288,176.95,176.91,24.027864]
[1729797635256,30.98796288,176.94,176.89,30.98796288]
[1729797635457,30.98796288,176.94,176.88,30.98796288]
[1729797635643,30.98796288,176.93,176.88,30.98796288]
[1729797636658,30.98796288,176.93,176.89,24.027864]
[1729797638463,30.98796288,176.93,176.88,0.25098]
[1729797638662,30.98796288,176.93,176.88,24.153354]
[1729797639366,30.98796288,176.93,176.88,55.14131688]
[1729797639555,22.7924,177.0,176.91,31.23894288]
[1729797639556,30.98796288,176.96,176.91,31.23894288]
[1729797639863,30.98796288,176.98,176.93,31.23894288]
[1729797640372,16.2421,177.0,176.97,0.25098]
[1729797640582,16.2421,177.0,176.97,31.23894288]
[1729797640773,16.2421,177.0,176.97,0.25098]
[1729797644560,30.98796288,177.02,176.97,0.12549]
[1729797644764,26.8708,177.04,176.97,31.23894288]
[1729797644960,15.194,177.04,177.0,30.98796288]
[1729797645864,30.98796288,177.03,176.98,30.98796288]
[1729797646367,30.98796288,177.02,176.97,31.23894288]
[1729797646870,30.98796288,176.99,176.93,30.98796288]
[1729797647369,30.98796288,176.99,176.94,30.98796288]
[1729797648270,30.98796288,177.0,176.95,30.98796288]
[1729797648460,30.98796288,177.0,176.96,30.98796288]
[1729797650171,30.98796288,177.01,176.96,30.98796288]
[1729797651386,30.98796288,177.02,176.98,30.98796288]
[1729797651667,31.67207515,177.07,177.02,0.12549]
[1729797651875,0.68411227,177.07,177.04,30.98796288]
[1729797653275,0.68411227,177.07,177.05,30.98796288]
[1729797653572,0.68411227,177.07,177.06,30.98796288]
[1729797653768,0.68411227,177.07,177.05,30.98796288]
[1729797654173,0.68411227,177.07,177.03,30.98796288]
[1729797655681,30.98796288,177.08,177.03,30.98796288]
[1729797656475,30.98796288,177.07,177.02,55.01582688]
[1729797656977,30.98796288,177.08,177.03,30.98796288]
[1729797658258,15.49398144,177.09,177.03,30.98796288]
[1729797658464,30.98796288,177.12,177.06,30.98796288]
[1729797658662,30.98796288,177.11,177.06,30.98796288]
[1729797658859,30.98796288,177.1,177.02,24.027864]
[1729797659168,30.98796288,177.09,177.04,0.25098]
[1729797660882,30.98796288,177.09,177.04,31.23894288]
[1729797662182,30.98796288,177.1,177.04,31.23894288]
[1729797663080,30.98796288,177.1,177.05,30.98796288]
[1729797663281,53.31701417,177.13,177.08,30.98796288]
[1729797663675,47.44266288,177.13,177.08,30.98796288]
[1729797664473,16.4547,177.13,177.09,55.01582688]
[1729797665293,15.49398144,177.16,177.11,30.98796288]
[1729797665585,30.98796288,177.14,177.09,55.01582688]
[1729797665792,27.4694,177.18,177.1,30.98796288]
[1729797665967,33.34989005,177.18,177.1,30.98796288]
[1729797666169,30.98796288,177.14,177.1,30.98796288]
[1729797666889,30.98796288,177.11,176.99,0.1]
[1729797667089,30.98796288,177.09,177.04,30.98796288]
[1729797667989,30.98796288,177.09,176.98,6.183]
[1729797667990,30.98796288,177.07,177.02,30.98796288]
[1729797668779,30.98796288,177.06,177.02,0.12549]
[1729797668984,30.98796288,177.06,177.01,30.98796288]
[1729797669281,30.98796288,177.06,177.02,0.12549]
[1729797669481,30.98796288,177.06,177.03,0.12549]
[1729797672103,30.98796288,177.05,177.03,0.12549]
[1729797673988,30.98796288,177.04,176.94,6.137]
[1729797674182,30.98796288,177.01,176.94,6.137]
[1729797674484,30.98796288,177.0,176.95,30.98796288]
[1729797674788,30.98796288,177.01,176.96,31.11345288]
[1729797675101,30.98796288,177.0,176.95,30.98796288]
[1729797675273,30.98796288,176.99,176.94,30.98796288]
[1729797675668,30.98796288,176.99,176.94,0.12549]
[1729797676388,30.98796288,176.98,176.93,30.98796288]
[1729797676587,30.98796288,176.98,176.94,24.027864]
[1729797676887,30.98796288,176.97,176.94,24.027864]
[1729797677107,30.98796288,176.96,176.91,30.98796288]
[1729797677305,30.98796288,176.94,176.86,6.2933]
[1729797677592,30.98796288,176.95,176.9,30.98796288]
[1729797678290,30.98796288,176.93,176.88,30.98796288]
[1729797678478,30.98796288,176.93,176.87,30.98796288]
[1729797678987,30.98796288,176.93,176.88,0.12549]
[1729797679197,30.98796288,176.93,176.88,31.11345288]
[1729797679397,30.98796288,176.93,176.88,30.98796288]
[1729797679698,30.98796288,176.93,176.89,24.027864]
[1729797680292,30.98796288,176.93,176.88,30.98796288]
[1729797680293,30.98796288,176.93,176.87,30.98796288]
[1729797680472,30.98796288,176.92,176.87,30.98796288]
[1729797680879,30.98796288,176.9,176.82,6.0911]
[1729797681087,30.98796288,176.9,176.85,30.98796288]
[1729797681415,30.98796288,176.91,176.86,0.12549]
[1729797681570,30.98796288,176.9,176.86,0.12549]
[1729797681770,30.98796288,176.9,176.86,24.153354]
[1729797683692,30.98796288,176.9,176.86,55.14131688]
[1729797684402,30.98796288,176.91,176.86,55.14131688]
[1729797685596,30.98796288,176.95,176.9,31.23894288]
[1729797685788,6.0153,176.99,176.92,30.98796288]
[1729797685995,30.98796288,176.95,176.92,0.25098]
[1729797687096,30.98796288,176.93,176.87,30.98796288]
[1729797687286,30.98796288,176.91,176.88,24.027864]
[1729797687693,11.6654,176.99,176.85,30.98796288]
[1729797687694,30.98796288,176.9,176.85,30.98796288]
[1729797687993,30.98796288,176.89,176.84,30.98796288]
[1729797688381,30.98796288,176.89,176.85,0.12549]
[1729797688913,30.98796288,176.89,176.86,0.12549]
[1729797689412,30.98796288,176.9,176.86,0.12549]
[1729797689798,30.98796288,176.89,176.86,0.12549]
[1729797690399,30.98796288,176.9,176.86,0.12549]
[1729797690576,30.98796288,176.91,176.86,0.12549]
[1729797691179,30.98796288,176.91,176.86,31.11345288]
[1729797691477,30.98796288,176.91,176.87,0.12549]
[1729797691683,47.08716288,176.92,176.87,0.12549]
[1729797693205,30.98796288,176.9,176.86,0.12549]
[1729797693499,30.98796288,176.9,176.86,0.25098]
[1729797695902,30.98796288,176.89,176.86,0.25098]
[1729797697499,30.98796288,176.9,176.86,0.25098]
[1729797697704,16.0992,176.92,176.86,31.23894288]
[1729797697705,30.98796288,176.91,176.86,31.23894288]
[1729797699485,16.0992,176.92,176.88,31.23894288]
[1729797699708,16.0992,176.92,176.9,0.25098]
[1729797700391,47.08716288,176.92,176.9,0.25098]
[1729797700696,30.98796288,176.91,176.86,30.98796288]
[1729797700898,30.98796288,176.9,176.85,55.01582688]
[1729797701097,30.98796288,176.91,176.87,0.25098]
[1729797701303,30.98796288,176.9,176.87,0.25098]
[1729797703407,30.98796288,176.9,176.86,0.12549]
[1729797703613,30.98796288,176.9,176.85,0.25098]
[1729797705609,30.98796288,176.89,176.84,30.98796288]
[1729797705805,30.98796288,176.89,176.83,30.98796288]
[1729797706002,30.98796288,176.89,176.84,0.25098]
[1729797706586,30.98796288,176.89,176.84,31.23894288]
[1729797706790,30.98796288,176.89,176.84,0.25098]
[1729797707207,30.98796288,176.86,176.81,15.49398144]
[1729797707411,30.98796288,176.85,176.8,30.98796288]
[1729797707787,30.98796288,176.86,176.81,30.98796288]
[1729797708396,30.98796288,176.86,176.82,0.12549]
[1729797708597,30.98796288,176.86,176.82,0.25098]
[1729797711315,30.98796288,176.87,176.82,31.23894288]
[1729797711509,30.98796288,176.89,176.84,30.98796288]
[1729797715406,30.98796288,176.91,176.86,30.98796288]
[1729797715608,53.56026288,176.92,176.87,0.25098]
[1729797715822,53.56026288,176.92,176.87,31.23894288]
[1729797716022,30.98796288,176.91,176.87,0.25098]
[1729797717416,30.98796288,176.9,176.86,0.25098]
[1729797718503,30.98796288,176.9,176.85,30.98796288]
[1729797718716,22.5723,176.92,176.85,30.98796288]
[1729797718931,30.98796288,176.9,176.85,30.98796288]
[1729797719996,30.98796288,176.91,176.85,30.98796288]
[1729797720319,30.98796288,176.91,176.86,31.23894288]
[1729797721826,53.56026288,176.92,176.86,31.23894288]
[1729797722626,30.98796288,176.91,176.86,31.23894288]
[1729797724423,19.8936663,176.91,176.86,20.1446463]
[1729797724611,16.0992,176.92,176.89,19.8936663]
[1729797724809,16.0992,176.92,176.86,0.25098]
[1729797724810,17.0060181,176.96,176.91,19.8936663]
[1729797725010,17.0060181,176.96,176.93,19.8936663]
[1729797726222,17.0060181,176.96,176.92,19.8936663]
[1729797726444,17.0060181,176.96,176.92,31.06094614]
[1729797727011,17.0060181,176.96,176.93,31.06094614]
[1729797727901,31.06094614,177.0,176.95,31.06094614]
[1729797731632,31.06094614,176.99,176.94,31.06094614]
[1729797731820,31.06094614,176.99,176.91,0.37647]
[1729797732134,31.06094614,176.99,176.94,31.06094614]
[1729797733712,31.06094614,176.99,176.91,0.37647]
[1729797734129,31.06094614,176.99,176.94,31.06094614]
[1729797735332,31.06094614,177.02,176.97,31.06094614]
[1729797735517,52.79704614,177.03,176.98,31.06094614]
[1729797736529,31.06094614,177.01,176.93,0.25098]
[1729797736722,16.0872,177.03,176.97,31.06094614]
[1729797737128,31.06094614,177.02,176.97,31.06094614]
[1729797741735,31.06094614,177.02,176.94,0.12549]
[1729797741932,31.06094614,177.02,176.94,0.25098]
[1729797742435,31.06094614,177.02,176.97,31.06094614]
[1729797743934,16.0872,177.03,176.99,31.06094614]
[1729797744230,31.06094614,177.06,177.01,31.06094614]
[1729797744829,31.06094614,177.06,177.02,31.06094614]
[1729797746540,31.06094614,177.06,177.01,31.06094614]
[1729797746839,31.06094614,177.05,177.0,31.06094614]
[1729797747636,31.06094614,177.05,176.95,0.12549]
[1729797747831,31.06094614,177.04,177.0,0.12549]
[1729797748039,31.06094614,177.05,177.0,31.31192614]
[1729797748336,19.86076303,177.05,177.0,20.11174303]
[1729797749241,19.86076303,177.05,177.0,19.86076303]
[1729797753546,19.86076303,177.03,176.92,8.52274667]
[1729797753728,19.86076303,177.01,176.96,19.86076303]
[1729797754131,19.86076303,177.01,176.93,0.12549]
[1729797754342,19.86076303,177.01,176.96,19.86076303]
[1729797754648,19.86076303,177.01,176.97,19.86076303]
[1729797754826,19.86076303,177.02,176.97,19.86076303]
[1729797755350,20.60508285,177.07,177.01,19.86076303]
[1729797755646,19.86076303,177.06,177.01,19.86076303]
[1729797756437,19.86076303,177.05,177.0,19.86076303]
[1729797757546,19.86076303,177.04,176.99,20.11174303]
[1729797758749,19.86076303,177.04,176.99,0.11174303]
[1729797758937,19.86076303,177.04,176.99,10.04212509]
[1729797760653,19.86076303,177.05,177.0,9.93038206]
[1729797760853,16.7582437,177.08,177.02,19.86076303]
[1729797761042,19.86076303,177.07,177.02,19.86076303]
[1729797762830,19.86076303,177.07,177.03,19.86076303]
[1729797763031,36.61900673,177.08,177.03,19.86076303]
[1729797764451,16.7582437,177.08,177.04,19.86076303]
[1729797764748,0.6050437,177.08,177.05,19.86076303]
[1729797766652,0.6050437,177.08,177.06,20.11174303]
[1729797766834,35.16006303,177.12,177.07,19.86076303]
[1729797767237,15.2993,177.18,177.1,20.11174303]
[1729797767435,19.86076303,177.15,177.1,20.11174303]
[1729797769545,20.9433,177.18,177.1,20.11174303]
[1729797769758,19.86076303,177.16,177.1,20.11174303]
[1729797771254,19.86076303,177.16,177.04,14.2328]
[1729797771255,15.4519,177.1,176.97,20.627]
[1729797771453,19.86076303,177.07,177.02,19.86076303]
[1729797771764,19.86076303,177.08,177.02,19.86076303]
[1729797771967,19.86076303,177.07,176.98,0.12549]
[1729797772167,19.86076303,177.07,177.02,19.86076303]
[1729797772465,19.86076303,177.07,177.03,0.25098]
[1729797772840,19.86076303,177.08,177.03,20.11174303]
[1729797773260,15.4519,177.1,177.04,23.776884]
[1729797773464,19.86076303,177.09,177.05,0.25098]
[1729797773669,35.31266303,177.1,177.05,20.11174303]
[1729797773965,19.86076303,177.11,177.05,20.11174303]
[1729797774158,19.86076303,177.1,177.05,20.11174303]
[1729797774460,6.3321,177.12,177.07,0.25098]
[1729797774763,19.86076303,177.11,177.07,0.25098]
[1729797775862,19.86076303,177.11,177.07,24.027864]
[1729797776066,15.4519,177.14,177.07,33.95824606]
[1729797776269,19.86076303,177.13,177.08,19.86076303]
[1729797776566,19.86076303,177.13,177.09,0.25098]
[1729797776972,19.86076303,177.12,177.08,0.25098]
[1729797782154,19.86076303,177.09,177.01,24.027864]
[1729797782357,19.86076303,177.1,177.05,24.027864]
[1729797782674,19.86076303,177.1,177.05,43.88862703]
[1729797782873,19.86076303,177.08,176.97,20.727]
[1729797783166,19.86076303,177.07,177.02,19.86076303]
[1729797783364,19.86076303,177.08,177.02,19.86076303]
[1729797783667,19.86076303,177.08,177.02,9.93038206]
[1729797783852,19.86076303,177.06,177.01,19.86076303]
[1729797784946,19.86076303,177.06,177.02,0.25098]
[1729797786367,19.86076303,177.07,177.02,20.11174303]
[1729797786671,5.6463,177.11,177.04,20.11174303]
[1729797786867,19.86076303,177.1,177.04,20.11174303]
[1729797787759,15.4519,177.14,177.06,0.25098]
[1729797787957,19.86076303,177.12,177.06,20.11174303]
[1729797790596,15.4519,177.14,177.09,19.86076303]
[1729797790878,35.31266303,177.14,177.08,20.11174303]
[1729797791049,35.31266303,177.14,177.09,19.86076303]
[1729797791371,19.86076303,177.13,177.08,20.11174303]
[1729797792155,35.31266303,177.14,177.09,19.86076303]
[1729797793871,35.31266303,177.14,177.1,0.25098]
[1729797794168,15.4519,177.14,177.1,20.11174303]
[1729797795178,35.31266303,177.14,177.1,0.25098]
[1729797798583,19.86076303,177.13,177.1,0.25098]
[1729797799163,35.31266303,177.14,177.1,0.25098]
[1729797800171,19.86076303,177.11,177.05,19.86076303]
[1729797800966,19.86076303,177.11,177.06,19.86076303]
[1729797801494,19.86076303,177.11,177.07,0.25098]
[1729797801788,19.86076303,177.12,177.07,0.25098]
[1729797802983,19.86076303,177.12,177.07,20.11174303]
[1729797803195,15.4519,177.14,177.08,19.86076303]
[1729797803487,35.31266303,177.14,177.1,0.25098]
[1729797803878,15.4519,177.14,177.1,24.027864]
[1729797804276,35.31266303,177.14,177.1,24.027864]
[1729797805577,19.86076303,177.13,177.09,24.027864]
[1729797806390,15.4519,177.14,177.09,24.027864]
[1729797806591,19.86076303,177.13,177.09,24.027864]
[1729797807288,15.4519,177.14,177.09,43.88862703]
[1729797807584,35.31266303,177.14,177.09,43.88862703]
[1729797807791,35.31266303,177.14,177.09,24.027864]
[1729797809595,15.4519,177.14,177.09,24.027864]
[1729797809889,35.31266303,177.14,177.09,24.027864]
[1729797810090,15.4519,177.14,177.09,24.027864]
[1729797810393,35.31266303,177.14,177.09,24.027864]
[1729797810791,15.4519,177.14,177.09,24.027864]
[1729797810989,35.31266303,177.14,177.09,24.027864]
[1729797813879,19.86076303,177.13,177.09,24.027864]
[1729797815489,19.86076303,177.11,177.09,0.25098]
[1729797816279,5.6442,177.18,177.1,0.12549]
[1729797816502,19.86076303,177.14,177.1,0.12549]
[1729797816878,5.6442,177.18,177.1,0.12549]
[1729797817086,19.86076303,177.14,177.1,0.12549]
[1729797817474,19.86076303,177.14,177.09,33.95824497]
[1729797817679,19.86076303,177.14,177.09,24.027864]
[1729797818194,5.6446,177.16,177.09,24.027864]